Workbook

Sheet Sheet1
A1: 2024年灵璧县城区中小学公开选调教师合成成绩公示
A2: 职位名称 | B2: 职位代码 | C2: 准考证号 | D2: 笔试成绩 | E2: 面试成绩 | F2: 修正系数 | G2: 修正后面试成绩 | H2: 合成成绩
A3: 小学语文 | B3: 2342001 | C3: 2408030120 | D3: 82.40 | E3: 79.66 | F3: 0.9855861 | G3: =E3*F3 -> 78.5117887 | H3: =D3*0.2+G3*0.8 -> 79.29
A4: 小学语文 | B4: 2342001 | C4: 2408030412 | D4: 82.20 | E4: 78.36 | F4: 1.0154446 | G4: =E4*F4 -> 79.5702389 | H4: =D4*0.2+G4*0.8 -> 80.10
A5: 小学语文 | B5: 2342001 | C5: 2408030413 | D5: 80.50 | E5: 76.38 | F5: 1.0154446 | G5: 77.5596585 | H5: 78.15
A6: 小学语文 | B6: 2342001 | C6: 2408030404 | D6: 80.40 | E6: 83.40 | F6: 0.9855861 | G6: 82.1978807 | H6: 81.84
A7: 小学语文 | B7: 2342001 | C7: 2408030406 | D7: 79.10 | E7: 82.56 | F7: 0.9855861 | G7: 81.3699884 | H7: 80.92
A8: 小学语文 | B8: 2342001 | C8: 2408030225 | D8: 78.50 | E8: 78.20 | F8: 1.0154446 | G8: 79.4077677 | H8: 79.23
A9: 小学语文 | B9: 2342001 | C9: 2408030214 | D9: 77.40 | E9: 78.22 | F9: 1.0154446 | G9: 79.4280766 | H9: 79.02
A10: 小学语文 | B10: 2342001 | C10: 2408030112 | D10: 76.60 | E10: 79.74 | F10: 0.9855861 | G10: 78.5906356 | H10: 78.19
A11: 小学语文 | B11: 2342001 | C11: 2408030217 | D11: 75.70 | E11: 75.20 | F11: 0.9855861 | G11: 74.1160747 | H11: 74.43
A12: 小学语文 | B12: 2342001 | C12: 2408030205 | D12: 75.60 | E12: 79.66 | F12: 1.0154446 | G12: 80.8903168 | H12: 79.83
A13: 小学语文 | B13: 2342001 | C13: 2408030218 | D13: 75.50 | E13: 80.42 | F13: 1.0154446 | G13: 81.6620547 | H13: 80.43
A14: 小学语文 | B14: 2342001 | C14: 2408030408 | D14: 75.10 | E14: 80.88 | F14: 0.9855861 | G14: 79.7142038 | H14: 78.79
A15: 小学语文 | B15: 2342001 | C15: 2408030310 | D15: 74.90 | E15: 80.80 | F15: 0.9855861 | G15: 79.6353569 | H15: 78.69
A16: 小学语文 | B16: 2342001 | C16: 2408030327 | D16: 74.70 | E16: 77.00 | F16: 1.0154446 | G16: 78.1892342 | H16: 77.49
A17: 小学语文 | B17: 2342001 | C17: 2408030107 | D17: 74.50 | E17: 77.88 | F17: 1.0154446 | G17: 79.0828254 | H17: 78.17
A18: 小学语文 | B18: 2342001 | C18: 2408030206 | D18: 74.30 | E18: 79.48 | F18: 0.9855861 | G18: 78.3343832 | H18: 77.53
A19: 小学语文 | B19: 2342001 | C19: 2408030415 | D19: 74.30 | E19: 81.22 | F19: 0.9855861 | G19: 80.0493030 | H19: 78.90
A20: 小学语文 | B20: 2342001 | C20: 2408030414 | D20: 73.90 | E20: 78.20 | F20: 1.0154446 | G20: 79.4077677 | H20: 78.31
A21: 小学语文 | B21: 2342001 | C21: 2408030309 | D21: 73.40 | E21: 79.60 | F21: 1.0154446 | G21: 80.8293902 | H21: 79.34
A22: 小学语文 | B22: 2342001 | C22: 2408030314 | D22: 73.40 | E22: 82.08 | F22: 0.9855861 | G22: 80.8969071 | H22: 79.40
A23: 小学语文 | B23: 2342001 | C23: 2408030410 | D23: 72.80 | E23: 80.50 | F23: 0.9855861 | G23: 79.3396811 | H23: 78.03
A24: 小学语文 | B24: 2342001 | C24: 2408030216 | D24: 72.70 | E24: 80.06 | F24: 1.0154446 | G24: 81.2964947 | H24: 79.58
A25: 小学语文 | B25: 2342001 | C25: 2408030421 | D25: 72.70 | E25: 76.94 | F25: 1.0154446 | G25: 78.1283075 | H25: 77.04
A26: 小学语文 | B26: 2342001 | C26: 2408030207 | D26: 72.40 | E26: 80.90 | F26: 0.9855861 | G26: 79.7339155 | H26: 78.27
A27: 小学语文 | B27: 2342001 | C27: 2408030228 | D27: 71.90 | E27: 83.02 | F27: 0.9855861 | G27: 81.8233580 | H27: 79.84
A28: 小学语文 | B28: 2342001 | C28: 2408030105 | D28: 71.60 | E28: 80.06 | F28: 1.0154446 | G28: 81.2964947 | H28: 79.36
A29: 小学语文 | B29: 2342001 | C29: 2408030223 | D29: 71.10 | E29: 80.28 | F29: 1.0154446 | G29: 81.5198925 | H29: 79.44
A30: 小学语文 | B30: 2342001 | C30: 2408030116 | D30: 70.10 | E30: 83.20 | F30: 0.9855861 | G30: 82.0007635 | H30: 79.62
A31: 小学语文 | B31: 2342001 | C31: 2408030401 | D31: 70.00 | E31: 77.66 | F31: 0.9855861 | G31: 76.5406165 | H31: 75.23
A32: 小学语文 | B32: 2342001 | C32: 2408030104 | D32: 69.90 | E32: 79.22 | F32: 1.0154446 | G32: 80.4435212 | H32: 78.33
A33: 小学语文 | B33: 2342001 | C33: 2408030322 | D33: 69.90 | E33: 80.08 | F33: 1.0154446 | G33: 81.3168036 | H33: 79.03
A34: 小学语文 | B34: 2342001 | C34: 2408030326 | D34: 69.90 | E34: 76.50 | F34: 0.9855861 | G34: 75.3973367 | H34: 74.30
A35: 小学语文 | B35: 2342001 | C35: 2408030303 | D35: 69.80 | E35: 81.10 | F35: 0.9855861 | G35: 79.9310327 | H35: 77.90
A36: 小学语文 | B36: 2342001 | C36: 2408030423 | D36: 69.80 | E36: 78.38 | F36: 1.0154446 | G36: =E36*F36 -> 79.5905477 | H36: =D36*0.2+G36*0.8 -> 77.63
A37: 小学语文 | B37: 2342001 | C37: 2408030210 | D37: 69.40 | E37: 78.74 | F37: 1.0154446 | G37: 79.9561078 | H37: 77.84
A38: 小学语文 | B38: 2342001 | C38: 2408030405 | D38: 69.40 | E38: 82.44 | F38: 0.9855861 | G38: 81.2517181 | H38: 78.88
A39: 小学语文 | B39: 2342001 | C39: 2408030124 | D39: 69.20 | E39: 84.28 | F39: 0.9855861 | G39: 83.0651965 | H39: 80.29
A40: 小学语文 | B40: 2342001 | C40: 2408030305 | D40: 69.00 | E40: 77.54 | F40: 1.0154446 | G40: 78.7375743 | H40: 76.79
A41: 小学语文 | B41: 2342001 | C41: 2408030219 | D41: 68.60 | E41: 76.62 | F41: 1.0154446 | G41: 77.8033653 | H41: 75.96
A42: 小学语文 | B42: 2342001 | C42: 2408030411 | D42: 68.50 | E42: 80.62 | F42: 0.9855861 | G42: 79.4579514 | H42: 77.27
A43: 小学语文 | B43: 2342001 | C43: 2408030118 | D43: 68.30 | E43: 83.08 | F43: 0.9855861 | G43: 81.8824932 | H43: 79.17
A44: 小学语文 | B44: 2342001 | C44: 2408030409 | D44: 68.10 | E44: 78.84 | F44: 1.0154446 | G44: 80.0576523 | H44: 77.67
A45: 小学语文 | B45: 2342001 | C45: 2408030130 | D45: 68.00 | E45: 79.84 | F45: 1.0154446 | G45: 81.0730969 | H45: 78.46
A46: 小学语文 | B46: 2342001 | C46: 2408030125 | D46: 67.60 | E46: 81.74 | F46: 0.9855861 | G46: 80.5618078 | H46: 77.97
A47: 小学语文 | B47: 2342001 | C47: 2408030222 | D47: 67.60 | E47: 81.72 | F47: 0.9855861 | G47: 80.5420961 | H47: 77.95
A48: 小学语文 | B48: 2342001 | C48: 2408030418 | D48: 67.60 | E48: 79.44 | F48: 1.0154446 | G48: 80.6669190 | H48: 78.05
A49: 小学语文 | B49: 2342001 | C49: 2408030208 | D49: 67.30 | E49: 77.60 | F49: 1.0154446 | G49: 78.7985010 | H49: 76.50
A50: 小学语文 | B50: 2342001 | C50: 2408030212 | D50: 67.10 | E50: 80.76 | F50: 0.9855861 | G50: 79.5959334 | H50: 77.10
A51: 小学语文 | B51: 2342001 | C51: 2408030319 | D51: 67.10 | E51: 81.50 | F51: 0.9855861 | G51: 80.3252672 | H51: 77.68
A52: 小学语文 | B52: 2342001 | C52: 2408030109 | D52: 66.90 | E52: 78.12 | F52: 1.0154446 | G52: 79.3265322 | H52: 76.84
A53: 小学语文 | B53: 2342001 | C53: 2408030121 | D53: 66.90 | E53: 缺考 | H53: 缺考
A54: 小学语文 | B54: 2342001 | C54: 2408030127 | D54: 66.70 | E54: 82.20 | F54: 0.9855861 | G54: 81.0151774 | H54: 78.15
A55: 小学数学 | B55: 2342002 | C55: 2408030720 | D55: 79.90 | E55: 79.42 | F55: 1.0005512 | G55: 79.4637763 | H55: 79.55
A56: 小学数学 | B56: 2342002 | C56: 2408030513 | D56: 79.40 | E56: 79.68 | F56: 0.9994494 | G56: 79.6361282 | H56: 79.59
A57: 小学数学 | B57: 2342002 | C57: 2408030526 | D57: 79.10 | E57: 79.22 | F57: 0.9994494 | G57: 79.1763815 | H57: 79.16
A58: 小学数学 | B58: 2342002 | C58: 2408030705 | D58: 78.20 | E58: 79.20 | F58: 1.0005512 | G58: 79.2436550 | H58: 79.03
A59: 小学数学 | B59: 2342002 | C59: 2408030625 | D59: 77.30 | E59: 78.72 | F59: 1.0005512 | G59: 78.7633905 | H59: 78.47
A60: 小学数学 | B60: 2342002 | C60: 2408030516 | D60: 77.00 | E60: 82.14 | F60: 0.9994494 | G60: 82.0947737 | H60: 81.08
A61: 小学数学 | B61: 2342002 | C61: 2408030807 | D61: 76.00 | E61: 81.94 | F61: 0.9994494 | G61: 81.8948838 | H61: 80.72
A62: 小学数学 | B62: 2342002 | C62: 2408030529 | D62: 75.90 | E62: 78.20 | F62: 1.0005512 | G62: 78.2431038 | H62: 77.77
A63: 小学数学 | B63: 2342002 | C63: 2408030616 | D63: 75.40 | E63: 79.70 | F63: 1.0005512 | G63: 79.7439306 | H63: 78.88
A64: 小学数学 | B64: 2342002 | C64: 2408030811 | D64: 74.70 | E64: 77.08 | F64: 0.9994494 | G64: 77.0375598 | H64: 76.57
A65: 小学数学 | B65: 2342002 | C65: 2408030805 | D65: 74.40 | E65: 78.78 | F65: 0.9994494 | G65: 78.7366237 | H65: 77.87
A66: 小学数学 | B66: 2342002 | C66: 2408030502 | D66: 74.00 | E66: 82.74 | F66: 1.0005512 | G66: 82.7856063 | H66: 81.03
A67: 小学数学 | B67: 2342002 | C67: 2408030528 | D67: 74.00 | E67: 76.02 | F67: 1.0005512 | G67: 76.0619022 | H67: 75.65
A68: 小学数学 | B68: 2342002 | C68: 2408030524 | D68: 73.90 | E68: 82.26 | F68: 0.9994494 | G68: =E68*F68 -> 82.2147076 | H68: =D68*0.2+G68*0.8 -> 80.55
A69: 小学数学 | B69: 2342002 | C69: 2408030530 | D69: 73.80 | E69: 79.56 | F69: 0.9994494 | G69: 79.5161943 | H69: 78.37
A70: 小学数学 | B70: 2342002 | C70: 2408030504 | D70: 73.70 | E70: 78.22 | F70: 1.0005512 | G70: 78.2631149 | H70: 77.35
A71: 小学数学 | B71: 2342002 | C71: 2408030729 | D71: 73.60 | E71: 81.62 | F71: 1.0005512 | G71: 81.6649889 | H71: 80.05
A72: 小学数学 | B72: 2342002 | C72: 2408030615 | D72: 73.50 | E72: 81.92 | F72: 0.9994494 | G72: 81.8748948 | H72: 80.20
A73: 小学数学 | B73: 2342002 | C73: 2408030614 | D73: 73.00 | E73: 77.56 | F73: 0.9994494 | G73: 77.5172955 | H73: 76.61
A74: 小学数学 | B74: 2342002 | C74: 2408030430 | D74: 72.50 | E74: 84.22 | F74: 1.0005512 | G74: 84.2664221 | H74: 81.91
A75: 小学数学 | B75: 2342002 | C75: 2408030523 | D75: 72.50 | E75: 82.60 | F75: 1.0005512 | G75: 82.6455291 | H75: 80.62
A76: 小学数学 | B76: 2342002 | C76: 2408030611 | D76: 72.40 | E76: 81.44 | F76: 0.9994494 | G76: 81.3951591 | H76: 79.60
A77: 小学数学 | B77: 2342002 | C77: 2408030714 | D77: 72.20 | E77: 80.58 | F77: 0.9994494 | G77: 80.5356327 | H77: 78.87
A78: 小学数学 | B78: 2342002 | C78: 2408030506 | D78: 72.00 | E78: 78.42 | F78: 1.0005512 | G78: 78.4632251 | H78: 77.17
A79: 小学数学 | B79: 2342002 | C79: 2408030708 | D79: 71.80 | E79: 81.70 | F79: 1.0005512 | G79: 81.7450330 | H79: 79.76
A80: 小学数学 | B80: 2342002 | C80: 2408030512 | D80: 71.40 | E80: 78.82 | F80: 0.9994494 | G80: 78.7766017 | H80: 77.30
A81: 小学数学 | B81: 2342002 | C81: 2408030511 | D81: 71.30 | E81: 81.88 | F81: 0.9994494 | G81: 81.8349169 | H81: 79.73
A82: 小学数学 | B82: 2342002 | C82: 2408030624 | D82: 71.30 | E82: 82.56 | F82: 1.0005512 | G82: 82.6055071 | H82: 80.34
A83: 小学数学 | B83: 2342002 | C83: 2408030602 | D83: 71.20 | E83: 74.02 | F83: 1.0005512 | G83: 74.0607998 | H83: 73.49
A84: 小学数学 | B84: 2342002 | C84: 2408030719 | D84: 71.20 | E84: 79.76 | F84: 0.9994494 | G84: 79.7160841 | H84: 78.01
A85: 小学数学 | B85: 2342002 | C85: 2408030703 | D85: 70.70 | E85: 80.98 | F85: 0.9994494 | G85: 80.9354124 | H85: 78.89
A86: 小学数学 | B86: 2342002 | C86: 2408030704 | D86: 70.70 | E86: 81.12 | F86: 1.0005512 | G86: 81.1647133 | H86: 79.07
A87: 小学数学 | B87: 2342002 | C87: 2408030718 | D87: 70.70 | E87: 82.20 | F87: 1.0005512 | G87: 82.2453086 | H87: 79.94
A88: 小学数学 | B88: 2342002 | C88: 2408030515 | D88: 70.30 | E88: 78.58 | F88: 0.9994494 | G88: 78.5367339 | H88: 76.89
A89: 小学英语 | B89: 2342003 | C89: 2408030904 | D89: 77.30 | E89: 75.74 | H89: =D89*0.2+E89*0.8 -> 76.05
A90: 小学英语 | B90: 2342003 | C90: 2408030828 | D90: 73.80 | E90: 77.06 | H90: =D90*0.2+E90*0.8 -> 76.41
A91: 小学英语 | B91: 2342003 | C91: 2408030901 | D91: 73.20 | E91: 74.80 | H91: 74.48
A92: 小学英语 | B92: 2342003 | C92: 2408030822 | D92: 72.70 | E92: 77.62 | H92: 76.64
A93: 小学英语 | B93: 2342003 | C93: 2408030906 | D93: 72.10 | E93: 78.36 | H93: 77.11
A94: 小学英语 | B94: 2342003 | C94: 2408030817 | D94: 71.50 | E94: 72.94 | H94: 72.65
A95: 小学英语 | B95: 2342003 | C95: 2408030827 | D95: 71.50 | E95: 71.52 | H95: 71.52
A96: 小学英语 | B96: 2342003 | C96: 2408030907 | D96: 70.70 | E96: 79.66 | H96: 77.87
A97: 小学英语 | B97: 2342003 | C97: 2408030905 | D97: 70.40 | E97: 72.08 | H97: 71.74
A98: 小学英语 | B98: 2342003 | C98: 2408030813 | D98: 70.10 | E98: 75.10 | H98: 74.10
A99: 小学英语 | B99: 2342003 | C99: 2408030819 | D99: 69.10 | E99: 缺考 | H99: 缺考
A100: 小学英语 | B100: 2342003 | C100: 2408030830 | D100: 69.10 | E100: 缺考 | H100: 缺考
A101: 小学英语 | B101: 2342003 | C101: 2408030815 | D101: 68.90 | E101: 74.06 | H101: 73.03
A102: 小学英语 | B102: 2342003 | C102: 2408030825 | D102: 67.90 | E102: 77.18 | H102: 75.32
A103: 初中语文 | B103: 2342004 | C103: 2408030908 | D103: 80.60 | E103: 81.42 | H103: 81.26
A104: 初中语文 | B104: 2342004 | C104: 2408030924 | D104: 80.10 | E104: 82.14 | H104: 81.73
A105: 初中语文 | B105: 2342004 | C105: 2408030909 | D105: 76.50 | E105: 83.48 | H105: 82.08
A106: 初中语文 | B106: 2342004 | C106: 2408030921 | D106: 72.60 | E106: 80.82 | H106: 79.18
A107: 初中语文 | B107: 2342004 | C107: 2408030911 | D107: 71.60 | E107: 81.42 | H107: 79.46
A108: 初中语文 | B108: 2342004 | C108: 2408030922 | D108: 71.40 | E108: 77.88 | H108: 76.58
A109: 初中语文 | B109: 2342004 | C109: 2408030914 | D109: 71.10 | E109: 78.26 | H109: 76.83
A110: 初中语文 | B110: 2342004 | C110: 2408030917 | D110: 69.30 | E110: 82.68 | H110: 80.00
A111: 初中语文 | B111: 2342004 | C111: 2408030918 | D111: 68.40 | E111: 82.28 | H111: 79.50
A112: 初中语文 | B112: 2342004 | C112: 2408030919 | D112: 66.20 | E112: 82.88 | H112: 79.54
A113: 初中语文 | B113: 2342004 | C113: 2408030920 | D113: 66.20 | E113: 81.74 | H113: 78.63
A114: 初中语文 | B114: 2342004 | C114: 2408030912 | D114: 66.00 | E114: 74.66 | H114: 72.93
A115: 初中语文 | B115: 2342004 | C115: 2408030910 | D115: 63.40 | E115: 80.68 | H115: 77.22
A116: 初中语文 | B116: 2342004 | C116: 2408030913 | D116: 61.20 | E116: 79.70 | H116: 76.00
A117: 初中语文 | B117: 2342004 | C117: 2408030923 | D117: 60.10 | E117: 76.54 | H117: 73.25
A118: 初中语文 | B118: 2342004 | C118: 2408030916 | D118: 58.90 | E118: 缺考 | H118: 缺考
A119: 初中语文 | B119: 2342004 | C119: 2408030925 | D119: 58.20 | E119: 78.66 | H119: 74.57
A120: 初中语文 | B120: 2342004 | C120: 2408030915 | D120: 53.30 | E120: 缺考 | H120: 缺考
A121: 初中数学 | B121: 2342005 | C121: 2408030928 | D121: 79.20 | E121: 83.04 | H121: 82.27
A122: 初中数学 | B122: 2342005 | C122: 2408031006 | D122: 77.60 | E122: 81.88 | H122: =D122*0.2+E122*0.8 -> 81.02
A123: 初中数学 | B123: 2342005 | C123: 2408031004 | D123: 75.80 | E123: 81.48 | H123: 80.34
A124: 初中数学 | B124: 2342005 | C124: 2408031011 | D124: 75.60 | E124: 74.24 | H124: 74.51
A125: 初中数学 | B125: 2342005 | C125: 2408031009 | D125: 74.20 | E125: 81.90 | H125: 80.36
A126: 初中数学 | B126: 2342005 | C126: 2408031016 | D126: 72.70 | E126: 74.54 | H126: 74.17
A127: 初中数学 | B127: 2342005 | C127: 2408031005 | D127: 72.30 | E127: 74.20 | H127: 73.82
A128: 初中数学 | B128: 2342005 | C128: 2408031007 | D128: 72.30 | E128: 79.94 | H128: 78.41
A129: 初中数学 | B129: 2342005 | C129: 2408031012 | D129: 72.30 | E129: 80.96 | H129: 79.23
A130: 初中数学 | B130: 2342005 | C130: 2408031008 | D130: 71.90 | E130: 74.20 | H130: 73.74
A131: 初中数学 | B131: 2342005 | C131: 2408031017 | D131: 71.00 | E131: 75.36 | H131: 74.49
A132: 初中数学 | B132: 2342005 | C132: 2408031015 | D132: 69.70 | E132: 77.24 | H132: 75.73
A133: 初中数学 | B133: 2342005 | C133: 2408030929 | D133: 68.80 | E133: 76.62 | H133: 75.06
A134: 初中数学 | B134: 2342005 | C134: 2408031014 | D134: 68.30 | E134: 80.86 | H134: 78.35
A135: 初中数学 | B135: 2342005 | C135: 2408031010 | D135: 66.80 | E135: 76.74 | H135: 74.75
A136: 初中数学 | B136: 2342005 | C136: 2408031013 | D136: 66.60 | E136: 缺考 | H136: 缺考
A137: 初中数学 | B137: 2342005 | C137: 2408031003 | D137: 66.50 | E137: 77.00 | H137: 74.90
A138: 初中数学 | B138: 2342005 | C138: 2408030930 | D138: 65.60 | E138: 76.66 | H138: 74.45
A139: 初中数学 | B139: 2342005 | C139: 2408031002 | D139: 64.20 | E139: 81.98 | H139: 78.42
A140: 初中数学 | B140: 2342005 | C140: 2408030927 | D140: 63.30 | E140: 78.08 | H140: 75.12
A141: 初中数学 | B141: 2342005 | C141: 2408030926 | D141: 60.20 | E141: 79.12 | H141: 75.34
A142: 初中数学 | B142: 2342005 | C142: 2408031001 | D142: 54.40 | E142: 缺考 | H142: 缺考
A143: 初中英语 | B143: 2342006 | C143: 2408031105 | D143: 76.90 | E143: 81.60 | H143: 80.66
A144: 初中英语 | B144: 2342006 | C144: 2408031018 | D144: 75.60 | E144: 81.88 | H144: 80.62
A145: 初中英语 | B145: 2342006 | C145: 2408031023 | D145: 75.30 | E145: 82.74 | H145: 81.25
A146: 初中英语 | B146: 2342006 | C146: 2408031030 | D146: 74.60 | E146: 80.80 | H146: 79.56
A147: 初中英语 | B147: 2342006 | C147: 2408031107 | D147: 71.80 | E147: 79.44 | H147: 77.91
A148: 初中英语 | B148: 2342006 | C148: 2408031102 | D148: 71.40 | E148: 82.10 | H148: 79.96
A149: 初中英语 | B149: 2342006 | C149: 2408031026 | D149: 70.90 | E149: 75.58 | H149: 74.64
A150: 初中英语 | B150: 2342006 | C150: 2408031021 | D150: 70.50 | E150: 75.70 | H150: 74.66
A151: 初中英语 | B151: 2342006 | C151: 2408031108 | D151: 70.10 | E151: 82.88 | H151: 80.32
A152: 初中英语 | B152: 2342006 | C152: 2408031024 | D152: 69.60 | E152: 79.76 | H152: 77.73
A153: 初中英语 | B153: 2342006 | C153: 2408031112 | D153: 69.30 | E153: 76.90 | H153: 75.38
A154: 初中英语 | B154: 2342006 | C154: 2408031028 | D154: 69.00 | E154: 79.20 | H154: =D154*0.2+E154*0.8 -> 77.16
A155: 初中英语 | B155: 2342006 | C155: 2408031027 | D155: 67.80 | E155: 83.74 | H155: 80.55
A156: 初中英语 | B156: 2342006 | C156: 2408031113 | D156: 67.70 | E156: 78.70 | H156: 76.50
A157: 初中英语 | B157: 2342006 | C157: 2408031109 | D157: 67.00 | E157: 79.16 | H157: 76.73
A158: 初中英语 | B158: 2342006 | C158: 2408031101 | D158: 66.40 | E158: 74.86 | H158: 73.17
A159: 初中英语 | B159: 2342006 | C159: 2408031110 | D159: 64.60 | E159: 79.60 | H159: 76.60
A160: 初中英语 | B160: 2342006 | C160: 2408031106 | D160: 63.00 | E160: 77.02 | H160: 74.22
A161: 初中英语 | B161: 2342006 | C161: 2408031019 | D161: 62.50 | E161: 75.70 | H161: 73.06
A162: 初中英语 | B162: 2342006 | C162: 2408031020 | D162: 62.40 | E162: 缺考 | H162: 缺考
A163: 初中英语 | B163: 2342006 | C163: 2408031111 | D163: 60.60 | E163: 74.52 | H163: 71.74
A164: 初中英语 | B164: 2342006 | C164: 2408031103 | D164: 52.20 | E164: 74.08 | H164: 69.70
A165: 初中英语 | B165: 2342006 | C165: 2408031025 | D165: 42.70 | E165: 缺考 | H165: 缺考
A166: 初中物理 | B166: 2342007 | C166: 2408031114 | D166: 67.40 | E166: 77.56 | H166: 75.53
A167: 初中物理 | B167: 2342007 | C167: 2408031115 | D167: 56.50 | E167: 80.70 | H167: 75.86
A168: 初中化学 | B168: 2342008 | C168: 2408031117 | D168: 79.10 | E168: 79.94 | H168: 79.77
A169: 初中化学 | B169: 2342008 | C169: 2408031122 | D169: 72.50 | E169: 78.86 | H169: 77.59
A170: 初中化学 | B170: 2342008 | C170: 2408031124 | D170: 67.70 | E170: 76.76 | H170: 74.95
A171: 初中化学 | B171: 2342008 | C171: 2408031119 | D171: 64.80 | E171: 83.18 | H171: 79.50
A172: 初中化学 | B172: 2342008 | C172: 2408031123 | D172: 64.00 | E172: 76.16 | H172: 73.73
A173: 初中化学 | B173: 2342008 | C173: 2408031120 | D173: 62.00 | E173: 81.52 | H173: 77.62
A174: 初中化学 | B174: 2342008 | C174: 2408031125 | D174: 60.30 | E174: 72.58 | H174: 70.12
A175: 初中化学 | B175: 2342008 | C175: 2408031116 | D175: 59.00 | E175: 71.32 | H175: 68.86
A176: 初中化学 | B176: 2342008 | C176: 2408031121 | D176: 57.40 | E176: 缺考 | H176: 缺考
A177: 初中化学 | B177: 2342008 | C177: 2408031118 | D177: 53.30 | E177: 80.68 | H177: 75.20
A178: 初中政治 | B178: 2342009 | C178: 2408031127 | D178: 79.40 | E178: 76.82 | H178: 77.34
A179: 初中政治 | B179: 2342009 | C179: 2408031129 | D179: 73.00 | E179: 79.46 | H179: 78.17
A180: 初中政治 | B180: 2342009 | C180: 2408031128 | D180: 70.20 | E180: 75.08 | H180: 74.10
A181: 初中政治 | B181: 2342009 | C181: 2408031126 | D181: 60.00 | E181: 缺考 | H181: 缺考
A182: 初中信息技术 | B182: 2342011 | C182: 2408031205 | D182: 77.20 | E182: 82.36 | H182: 81.33
A183: 初中信息技术 | B183: 2342011 | C183: 2408031207 | D183: 73.40 | E183: 78.28 | H183: 77.30
A184: 初中信息技术 | B184: 2342011 | C184: 2408031203 | D184: 68.50 | E184: 73.80 | H184: 72.74
A185: 初中信息技术 | B185: 2342011 | C185: 2408031204 | D185: 68.00 | E185: 82.74 | H185: 79.79
A186: 初中信息技术 | B186: 2342011 | C186: 2408031130 | D186: 66.50 | E186: 78.48 | H186: =D186*0.2+E186*0.8 -> 76.08
A187: 初中信息技术 | B187: 2342011 | C187: 2408031202 | D187: 62.70 | E187: 83.46 | H187: 79.31
A188: 初中信息技术 | B188: 2342011 | C188: 2408031206 | D188: 56.90 | E188: 73.98 | H188: 70.56
A189: 初中信息技术 | B189: 2342011 | C189: 2408031201 | D189: 49.10 | E189: 78.84 | H189: 72.89
A190: 初中音乐 | B190: 2342012 | C190: 2408031219 | D190: 78.10 | E190: 79.02 | H190: 78.84
A191: 初中音乐 | B191: 2342012 | C191: 2408031212 | D191: 70.30 | E191: 78.50 | H191: 76.86
A192: 初中音乐 | B192: 2342012 | C192: 2408031222 | D192: 67.70 | E192: 78.06 | H192: 75.99
A193: 初中音乐 | B193: 2342012 | C193: 2408031209 | D193: 67.20 | E193: 77.84 | H193: 75.71
A194: 初中体育 | B194: 2342013 | C194: 2408031308 | D194: 72.10 | E194: 81.38 | H194: 79.52
A195: 初中体育 | B195: 2342013 | C195: 2408031305 | D195: 68.10 | E195: 79.22 | H195: 77.00
A196: 初中体育 | B196: 2342013 | C196: 2408031316 | D196: 66.90 | E196: 79.06 | H196: 76.63
A197: 初中体育 | B197: 2342013 | C197: 2408031307 | D197: 65.30 | E197: 78.90 | H197: 76.18
A198: 初中体育 | B198: 2342013 | C198: 2408031312 | D198: 65.10 | E198: 77.58 | H198: 75.08
A199: 初中体育 | B199: 2342013 | C199: 2408031314 | D199: 63.70 | E199: 78.22 | H199: 75.32
A200: 初中体育 | B200: 2342013 | C200: 2408031228 | D200: 62.90 | E200: 79.14 | H200: 75.89
... 23 more rows
